fUST/lending_fUST_20240924
["ID","MTS","AMOUNT","RATE_DAILY","PERIOD"]
[339055488,1727183447418,-253.033918,0.00030136,7]
[339055489,1727183447428,-503.82930112,0.00030136,14]
[339055490,1727183447437,-500.0,0.00030136,14]
[339055491,1727183447447,-598.30410554,0.00030136,3]
[339055492,1727183447457,-550.2,0.00030136,14]
[339055493,1727183447467,-500.0,0.00030136,14]
[339055494,1727183447476,-500.0,0.00030136,14]
[339055495,1727183447487,-506.27358347,0.00030136,14]
[339055496,1727183447497,-500.0,0.00030136,14]
[339055497,1727183447507,-500.0,0.00030136,14]
[339055498,1727183447516,-500.0,0.00030136,14]
[339055499,1727183447526,-502.4007304,0.00030136,14]
[339055500,1727183447537,-424.68576835,0.00030136,14]
[339055501,1727183447546,-500.0,0.00030136,14]
[339055502,1727183447558,-500.0,0.00030136,14]
[339055503,1727183447568,-151.0,0.00030136,7]
[339055504,1727183447577,-151.0,0.00030136,7]
[339055505,1727183447587,-151.0,0.00030136,7]
[339055506,1727183447596,-151.0,0.00030136,7]
[339055507,1727183447606,-151.0,0.00030136,7]
[339055508,1727183447616,-151.0,0.00030136,7]
[339055509,1727183447627,-151.0,0.00030136,7]
[339055510,1727183447637,-151.0,0.00030136,7]
[339055511,1727183447647,-151.0,0.00030136,7]
[339055512,1727183447656,-151.0,0.00030136,7]
[339055513,1727183447666,-151.0,0.00030136,7]
[339055514,1727183447675,-151.0,0.00030136,7]
[339055515,1727183447685,-151.0,0.00030136,7]
[339055516,1727183447695,-263.642063,0.00030136,7]
[339055517,1727183447704,-151.0,0.00030136,7]
[339055518,1727183447714,-502.28777492,0.00030136,14]
[339055519,1727183447723,-151.0,0.00030136,7]
[339055520,1727183447734,-235.740602,0.00030136,7]
[339055521,1727183447745,-500.0,0.00030136,14]
[339055522,1727183447755,-500.0,0.00030136,14]
[339055523,1727183447766,-503.40496266,0.00030136,14]
[339055524,1727183447775,-500.0,0.00030136,14]
[339055525,1727183447785,-160.676674,0.00030136,7]
[339055526,1727183447795,-500.0,0.00030136,14]
[339055527,1727183447805,-160.676674,0.00030136,7]
[339055528,1727183447816,-160.676674,0.00030136,7]
[339055529,1727183447826,-160.676674,0.00030136,7]
[339055530,1727183447837,-160.676674,0.00030136,7]
[339055531,1727183447847,-160.676674,0.00030136,7]
[339055532,1727183447857,-160.676674,0.00030136,7]
[339055533,1727183447866,-500.0,0.00030136,14]
[339055534,1727183447876,-500.0,0.00030136,14]
[339055535,1727183447885,-160.676674,0.00030136,7]
[339055536,1727183447894,-160.676674,0.00030136,7]
[339055537,1727183447904,-160.676674,0.00030136,7]
[339055538,1727183447913,-160.676674,0.00030136,7]
[339055539,1727183447922,-160.676674,0.00030136,7]
[339055540,1727183447933,-160.676674,0.00030136,7]
[339055541,1727183447944,-160.676673,0.00030136,7]
[339055542,1727183447953,-964.46,0.00030136,14]
[339055543,1727183447962,-254.96848035,0.00030136,14]
[339055544,1727183448088,-500.0,0.00030136,14]
[339055545,1727183448098,-339.10678015,0.00030136,5]
[339055546,1727183448107,-501.32,0.00030136,7]
[339055547,1727183448117,-500.0,0.00030136,14]
[339055548,1727183448125,-151.0,0.00030136,7]
[339055549,1727183448135,-151.0,0.00030136,7]
[339055550,1727183448144,-500.0,0.00030136,14]
[339055551,1727183448154,-500.0,0.00030136,14]
[339055552,1727183448163,-500.0,0.00030136,14]
[339055553,1727183448172,-500.0,0.00030136,2]
[339055554,1727183448182,-513.26154922,0.00030136,14]
[339055555,1727183448191,-500.0,0.00030136,14]
[339055556,1727183448200,-500.0,0.00030136,14]
[339055557,1727183448210,-505.75665491,0.00030136,14]
[339055558,1727183448219,-500.0,0.00030136,14]
[339055559,1727183448228,-151.0,0.00030136,7]
[339055560,1727183448239,-156.477397,0.00030136,7]
[339055561,1727183448249,-500.0,0.00030136,14]
[339055562,1727183448258,-500.0,0.00030136,14]
[339055563,1727183448268,-151.0,0.00030136,7]
[339055564,1727183448277,-151.0,0.00030136,7]
[339055565,1727183448287,-151.0,0.00030136,7]
[339055566,1727183448297,-151.0,0.00030136,7]
[339055567,1727183448306,-151.0,0.00030136,7]
[339055568,1727183448316,-151.0,0.00030136,7]
[339055569,1727183448325,-500.0,0.00030136,14]
[339055570,1727183448335,-703.23,0.00030136,14]
[339055571,1727183448344,-1000.0,0.00030136,14]
[339055572,1727183448354,-500.80485147,0.00030136,14]
[339055573,1727183448363,-500.0,0.00030136,14]
[339055574,1727183448372,-982.38,0.00030136,14]
[339055575,1727183448382,-500.0,0.00030136,14]
[339055576,1727183448392,-500.0,0.00030136,14]
[339055577,1727183448402,-500.0,0.00030136,14]
[339055578,1727183448412,-500.0,0.00030136,14]
[339055579,1727183448423,-500.0,0.00030136,14]
[339055580,1727183448432,-500.0,0.00030136,14]
[339055581,1727183448441,-500.0,0.00030136,14]
[339055582,1727183448451,-1000.2,0.00030136,20]
[339055583,1727183448461,-845.31,0.00030136,7]
[339055584,1727183448472,-500.0,0.00030136,14]
[339055585,1727183448481,-500.0,0.00030136,14]
[339055586,1727183448493,-502.7912257,0.00030136,14]
[339055587,1727183448502,-402.221516,0.00030136,7]
[339055588,1727183448511,-402.221516,0.00030136,7]
[339055589,1727183448520,-402.221516,0.00030136,7]
[339055590,1727183448529,-402.221516,0.00030136,7]
[339055591,1727183448539,-402.221516,0.00030136,7]
[339055592,1727183448549,-402.221516,0.00030136,7]
[339055593,1727183448562,-402.221516,0.00030136,7]
[339055594,1727183448572,-402.221516,0.00030136,7]
[339055595,1727183448581,-402.221516,0.00030136,7]
[339055596,1727183448591,-500.0,0.00030136,14]
[339055597,1727183448602,-402.221509,0.00030136,7]
[339055598,1727183448612,-248.59790801,0.00030136,14]
[339055599,1727183448621,-500.0,0.00030136,14]
[339055600,1727183448632,-503.25,0.00030136,14]
[339055601,1727183448642,-500.0,0.00030136,14]
[339055602,1727183448652,-690.5,0.00030136,14]
[339055603,1727183448661,-500.0,0.00030136,14]
[339055604,1727183448671,-1040.87,0.00030136,14]
[339055605,1727183448680,-500.0,0.00030136,14]
[339055606,1727183448690,-550.98,0.00030136,14]
[339055607,1727183448699,-771.06,0.00030136,14]
[339055608,1727183448709,-500.0,0.00030136,14]
[339055609,1727183448718,-500.0,0.00030136,14]
[339055610,1727183448729,-509.1509349,0.00030136,14]
[339055611,1727183448739,-500.0,0.00030136,14]
[339055612,1727183448748,-874.58,0.00030136,2]
[339055613,1727183448757,-500.0,0.00030136,14]
[339055614,1727183448768,-983.4,0.00030136,14]
[339055615,1727183448778,-582.74,0.00030136,14]
[339055616,1727183448787,-500.0,0.00030136,14]
[339055617,1727183448797,-500.0,0.00030136,14]
[339055618,1727183448807,-500.0,0.00030136,14]
[339055619,1727183448816,-500.0,0.00030136,2]
[339055620,1727183448826,-560.85,0.00030136,14]
[339055621,1727183448836,-488.00084634,0.00030136,14]
[339055622,1727183448845,-500.0,0.00030136,14]
[339055623,1727183448854,-500.0,0.00030136,14]
[339055624,1727183448865,-500.0,0.00030136,14]
[339055625,1727183448874,-500.0,0.00030136,14]
[339055626,1727183448884,-500.0,0.00030136,14]
[339055627,1727183448894,-509.42840549,0.00030136,14]
[339055628,1727183448904,-500.0,0.00030136,14]
[339055629,1727183448913,-1774.29,0.00030136,14]
[339055630,1727183448923,-500.0,0.00030136,14]
[339055631,1727183448933,-500.0,0.00030136,14]
[339055632,1727183448942,-506.34592671,0.00030136,14]
[339055633,1727183448952,-685.04,0.00030136,14]
[339055634,1727183448962,-500.0,0.00030136,120]
[339055635,1727183448971,-500.0,0.00030136,14]
[339055636,1727183448981,-500.0,0.00030136,14]
[339055637,1727183448991,-500.0,0.00030136,14]
[339055638,1727183449000,-500.0,0.00030136,14]
[339055639,1727183449010,-521.76,0.00030136,14]
[339055640,1727183449020,-500.0,0.00030136,14]
[339055641,1727183449029,-500.0,0.00030136,14]
[339055642,1727183449039,-150.0,0.00030136,14]
[339055643,1727183449049,-500.0,0.00030136,14]
[339055644,1727183449059,-255.80139969,0.00030136,14]
[339055645,1727183449069,-500.0,0.00030136,14]
[339055646,1727183449079,-866.81,0.00030136,14]
[339055647,1727183449088,-500.0,0.00030136,14]
[339055648,1727183449099,-500.0,0.00030136,14]
[339055649,1727183449108,-500.0,0.00030136,14]
[339055650,1727183449118,-500.0,0.00030136,14]
[339055651,1727183449127,-1075.54,0.00030136,14]
[339055652,1727183449136,-500.0,0.00030136,14]
[339055653,1727183449146,-500.0,0.00030136,14]
[339055654,1727183449156,-500.0,0.00030136,14]
[339055655,1727183449166,-500.0,0.00030136,14]
[339055656,1727183449175,-500.0,0.00030136,14]
[339055657,1727183449185,-738.16,0.00030136,7]
[339055658,1727183449195,-500.0,0.00030136,14]
[339055659,1727183449204,-971.28,0.00030136,14]
[339055660,1727183449214,-1613.37,0.00030136,14]
[339055661,1727183449224,-1097.6,0.00030136,14]
[339055662,1727183449235,-500.0,0.00030136,14]
[339055663,1727183449246,-500.0,0.00030136,14]
[339055664,1727183449255,-565.12,0.00030136,14]
[339055665,1727183449265,-500.0,0.00030136,14]
[339055666,1727183449274,-500.0,0.00030136,14]
[339055667,1727183449284,-500.0,0.00030136,14]
[339055668,1727183449294,-204.62654915,0.00030136,14]
[339055669,1727183449304,-664.73,0.00030136,14]
[339055670,1727183449313,-500.0,0.00030136,14]
[339055671,1727183449324,-510.7760242,0.00030136,14]
[339055672,1727183449334,-198.01935086,0.00030136,14]
[339055673,1727183449343,-151.0,0.00030136,7]
[339055674,1727183449353,-151.0,0.00030136,7]
[339055675,1727183449363,-151.0,0.00030136,7]
[339055676,1727183449372,-151.0,0.00030136,7]
[339055677,1727183449381,-500.0,0.00030136,14]
[339055678,1727183449391,-500.0,0.00030136,14]
[339055679,1727183449401,-612.602759,0.00030136,7]
[339055680,1727183449411,-612.602762,0.00030136,7]
[339055681,1727183449422,-931.14,0.00030136,14]
[339055682,1727183449431,-1600.34,0.00030136,14]
[339055683,1727183449441,-815.6,0.00030136,14]
[339055684,1727183449450,-500.0,0.00030136,14]
[339055685,1727183449461,-500.0,0.00030136,14]
[339055686,1727183449471,-500.0,0.00030136,14]
[339055687,1727183449481,-1015.01,0.00030136,14]
[339055688,1727183449491,-500.0,0.00030136,14]
[339055689,1727183449500,-500.0,0.00030136,14]
[339055690,1727183449509,-151.0,0.00030136,7]
[339055691,1727183449518,-500.0,0.00030136,14]
[339055692,1727183449528,-151.0,0.00030136,7]
[339055693,1727183449538,-151.0,0.00030136,7]
[339055694,1727183449550,-814.57,0.00030136,14]
[339055695,1727183449563,-151.0,0.00030136,7]
[339055696,1727183449573,-500.0,0.00030136,14]
[339055697,1727183449582,-500.0,0.00030136,14]
[339055698,1727183449592,-500.0,0.00030136,14]
[339055699,1727183449602,-500.0,0.00030136,14]
[339055700,1727183449612,-500.0,0.00030136,14]
[339055701,1727183449622,-500.0,0.00030136,14]
[339055702,1727183449631,-269.51,0.00030136,7]
[339055703,1727183449643,-500.0,0.00030136,14]
[339055704,1727183449654,-566.53,0.00030136,14]
[339055705,1727183449663,-593.08,0.00030136,14]
[339055706,1727183449672,-500.0,0.00030136,14]
[339055707,1727183449682,-1023.49,0.00030136,14]
[339055708,1727183449692,-525.51275195,0.00030136,14]
[339055709,1727183449702,-500.0,0.00030136,14]
[339055710,1727183449712,-502.35322054,0.00030136,14]
[339055711,1727183449721,-500.0,0.00030136,14]
[339055712,1727183449731,-843.22,0.00030136,14]
[339055713,1727183449742,-1314.69,0.00030136,14]
[339055714,1727183449752,-890.05,0.00030136,14]
[339055715,1727183449761,-500.0,0.00030136,14]
[339055716,1727183449771,-500.0,0.00030136,14]
[339055717,1727183449779,-500.0,0.00030136,14]
[339055718,1727183449789,-500.0,0.00030136,14]
[339055719,1727183449798,-921.47,0.00030136,14]
[339055720,1727183449808,-500.0,0.00030136,14]
[339055721,1727183449818,-500.0,0.00030136,14]
[339055722,1727183449829,-500.0,0.00030136,14]
[339055723,1727183449838,-500.0,0.00030136,14]
[339055724,1727183449848,-633.78,0.00030136,14]
[339055725,1727183449858,-500.0,0.00030136,14]
[339055726,1727183449867,-500.0,0.00030136,14]
[339055727,1727183449876,-525.278445,0.00030136,7]
[339055728,1727183449886,-525.278445,0.00030136,7]
[339055729,1727183449895,-500.0,0.00030136,14]
[339055730,1727183449905,-525.278445,0.00030136,7]
[339055731,1727183449914,-525.278445,0.00030136,7]
[339055732,1727183449924,-500.0,0.00030136,14]
[339055733,1727183449933,-500.0,0.00030136,14]
[339055734,1727183449943,-500.0,0.00030136,14]
[339055735,1727183449953,-507.02673291,0.00030136,14]
[339055736,1727183449962,-855.94,0.00030136,2]
[339055737,1727183449971,-500.0,0.00030136,14]
[339055738,1727183449981,-525.278445,0.00030136,7]
[339055739,1727183449992,-525.278445,0.00030136,7]
[339055740,1727183450001,-525.278445,0.00030136,7]
[339055741,1727183450011,-525.278436,0.00030136,7]
[339055742,1727183450020,-715.92,0.00030136,14]
[339055743,1727183450029,-1180.58,0.00030136,14]
[339055744,1727183450039,-500.0,0.00030136,14]
[339055745,1727183450048,-772.86,0.00030136,14]
[339055746,1727183450058,-500.0,0.00030136,14]
[339055747,1727183450067,-500.0,0.00030136,14]
[339055748,1727183450076,-500.0,0.00030136,14]
[339055749,1727183450086,-500.0,0.00030136,14]
[339055750,1727183450096,-500.0,0.00030136,14]
[339055751,1727183450106,-504.82178185,0.00030136,14]
[339055752,1727183450116,-500.0,0.00030136,14]
[339055753,1727183450126,-506.82373403,0.00030136,14]
[339055754,1727183450136,-2032.49706,0.00030136,7]
[339055755,1727183450146,-2032.49706,0.00030136,7]
[339055756,1727183450156,-500.0,0.00030136,14]
[339055757,1727183450166,-500.0,0.00030136,14]
[339055758,1727183450176,-2032.49706,0.00030136,7]
[339055759,1727183450185,-2032.49706,0.00030136,7]
[339055760,1727183450194,-597.02573248,0.00030136,14]
[339055761,1727183450203,-500.0,0.00030136,14]
[339055762,1727183450214,-2032.49706,0.00030136,7]
[339055763,1727183450224,-500.0,0.00030136,14]
[339055764,1727183450235,-2032.49706,0.00030136,7]
[339055765,1727183450247,-151.0,0.00030136,7]
[339055766,1727183450358,-2032.49706,0.00030136,7]
[339055767,1727183450368,-169.76372308,0.00030136,14]
[339055768,1727183450889,-836.32,0.00025194,3]
[339055769,1727183450898,-1607.525839,0.00028359,7]
[339055770,1727183450908,-588.887551,0.00029708,7]
[339055771,1727183450918,-588.887551,0.0002989,7]
[339055772,1727183450927,-588.887551,0.000299,7]
[339055773,1727183450936,-588.887551,0.0002997,7]
[339055774,1727183450946,-588.887551,0.00029973,7]
[339055775,1727183450955,-588.887551,0.0003,7]
[339055776,1727183450965,-330.23627692,0.00030136,14]
[339055777,1727183450974,-151.0,0.00030136,7]
[339055778,1727183450983,-2032.49705,0.00030136,7]
[339055779,1727183450993,-500.0,0.00030136,14]
[339055780,1727183451002,-151.0,0.00030136,7]
[339055781,1727183451012,-151.0,0.00030136,7]
[339055782,1727183451021,-1008.64,0.00030136,14]
[339055783,1727183451030,-500.0,0.00030136,14]
[339055784,1727183451039,-224.23437435,0.00030136,14]
[339055785,1727183451049,-500.0,0.00030136,14]
[339055786,1727183451058,-151.0,0.00030136,7]
[339055787,1727183451067,-151.0,0.00030136,7]
[339055788,1727183451076,-151.0,0.00030136,7]
[339055789,1727183451085,-151.0,0.00030136,7]
[339055790,1727183451094,-737.29,0.00030136,14]
[339055791,1727183451103,-500.0,0.00030136,14]
[339055792,1727183451111,-198.226306,0.00030136,7]
[339055793,1727183451121,-500.0,0.00030136,14]
[339055794,1727183451130,-1153.19,0.00030136,14]
[339055795,1727183451140,-839.49375992,0.00030136,14]
[339055796,1727183451149,-500.0,0.00030136,14]
[339055797,1727183451158,-500.0,0.00030136,14]
[339055798,1727183451167,-500.0,0.00030136,14]
[339055799,1727183451177,-500.0,0.00030136,14]
[339055800,1727183451186,-462.472312,0.00030136,7]
[339055801,1727183451195,-462.472312,0.00030136,7]
[339055802,1727183451205,-462.472312,0.00030136,7]
[339055803,1727183451214,-462.472312,0.00030136,7]
[339055804,1727183451223,-500.0,0.00030136,14]
[339055805,1727183451232,-560.6,0.00030136,14]
[339055806,1727183451242,-500.0,0.00030136,14]
[339055807,1727183451251,-500.0,0.00030136,14]
[339055808,1727183451260,-462.472312,0.00030136,7]
[339055809,1727183451270,-462.472312,0.00030136,7]
[339055810,1727183451279,-500.0,0.00030136,14]
[339055811,1727183451288,-462.472312,0.00030136,7]
[339055812,1727183451298,-462.472305,0.00030136,7]
[339055813,1727183451308,-500.0,0.00030136,14]
[339055814,1727183451317,-500.0,0.00030136,14]
[339055815,1727183451326,-500.61072688,0.00030136,14]
[339055816,1727183451336,-500.0,0.00030136,14]
[339055817,1727183451345,-500.0,0.00030136,14]
[339055818,1727183451354,-500.0,0.00030136,14]
[339055819,1727183451363,-500.0,0.00030136,14]
[339055820,1727183451372,-500.0,0.00030136,14]
[339055821,1727183451382,-500.0,0.00030136,14]
[339055822,1727183451391,-500.0,0.00030136,14]
[339055823,1727183451400,-501.55,0.00030136,14]
[339055824,1727183451409,-775.8,0.00030136,14]
[339055825,1727183451419,-685.358578,0.00030136,7]
[339055826,1727183451428,-685.358578,0.00030136,7]
[339055827,1727183451437,-500.0,0.00030136,14]
[339055828,1727183451447,-500.0,0.00030136,14]
[339055829,1727183451456,-685.358578,0.00030136,7]
[339055830,1727183451465,-685.358578,0.00030136,7]
[339055831,1727183451474,-500.0,0.00030136,14]
[339055832,1727183451483,-685.358578,0.00030136,7]
[339055833,1727183451493,-500.0,0.00030136,14]
[339055834,1727183451503,-685.358578,0.00030136,7]
[339055835,1727183451512,-500.0,0.00030136,14]
[339055836,1727183451521,-685.358578,0.00030136,7]
[339055837,1727183451530,-685.358585,0.00030136,7]
[339055838,1727183451539,-500.0,0.00030136,14]
[339055839,1727183451550,-500.0,0.00030136,14]
[339055840,1727183451561,-500.0,0.00030136,14]
[339055841,1727183451570,-500.0,0.00030136,7]
[339055842,1727183451579,-500.0,0.00030136,14]
[339055843,1727183451588,-500.0,0.00030136,14]
[339055844,1727183451598,-500.0,0.00030136,14]
[339055845,1727183451607,-986.37,0.00030136,14]
[339055846,1727183451617,-501.57856523,0.00030136,14]
[339055847,1727183451628,-500.0,0.00030136,14]
[339055848,1727183451637,-500.0,0.00030136,14]
[339055849,1727183451646,-500.0,0.00030136,14]
[339055850,1727183451656,-500.0,0.00030136,14]
[339055851,1727183451665,-524.21774861,0.00030136,14]
[339055852,1727183451674,-500.0,0.00030136,14]
[339055853,1727183451683,-500.0,0.00030136,14]
[339055854,1727183451692,-500.0,0.00030136,14]
[339055855,1727183451701,-502.54197791,0.00030136,14]
[339055856,1727183451711,-500.0,0.00030136,14]
[339055857,1727183451720,-500.0,0.00030136,14]
[339055858,1727183451729,-500.0,0.00030136,14]
[339055859,1727183451739,-500.0,0.00030136,14]
[339055860,1727183451748,-500.0,0.00030136,14]
[339055861,1727183451758,-415.42,0.00030136,14]
[339055862,1727183451767,-500.0,0.00030136,14]
[339055863,1727183451776,-500.0,0.00030136,14]
[339055864,1727183451786,-500.0,0.00030136,14]
[339055865,1727183451795,-599.57,0.00030136,14]
[339055866,1727183451804,-500.0,0.00030136,14]
[339055867,1727183451813,-500.0,0.00030136,14]
[339055868,1727183451822,-624.3,0.00030136,14]
[339055869,1727183451833,-500.0,0.00030136,14]
[339055870,1727183451842,-500.0,0.00030136,14]
[339055871,1727183451851,-442.072804,0.00030136,7]
[339055872,1727183451860,-674.45,0.00030136,14]
[339055873,1727183451869,-442.072804,0.00030136,7]
[339055874,1727183451878,-500.0,0.00030136,14]
[339055875,1727183451887,-500.0,0.00030136,14]
[339055876,1727183451896,-442.072804,0.00030136,7]
[339055877,1727183451905,-500.0,0.00030136,14]
[339055878,1727183451915,-442.072804,0.00030136,7]
[339055879,1727183451924,-775.14732377,0.00030136,14]
[339055880,1727183451933,-500.0,0.00030136,14]
[339055881,1727183451942,-500.0,0.00030136,14]
[339055882,1727183451951,-442.072804,0.00030136,7]
[339055883,1727183451961,-500.0,0.00030136,14]
[339055884,1727183451970,-500.0,0.00030136,14]
[339055885,1727183451979,-442.072804,0.00030136,7]
[339055886,1727183451989,-442.072804,0.00030136,7]
[339055887,1727183452106,-442.07281,0.00030136,7]
[339055888,1727183452116,-500.0,0.00030136,14]
[339055889,1727183452125,-500.0,0.00030136,14]
[339055890,1727183452135,-500.0,0.00030136,14]
[339055891,1727183452144,-500.0,0.00030136,14]
[339055892,1727183452152,-500.0,0.00030136,14]
[339055893,1727183452161,-500.0,0.00030136,14]
[339055894,1727183452172,-500.0,0.00030136,14]
[339055895,1727183452181,-500.0,0.00030136,14]
[339055896,1727183452191,-500.0,0.00030136,14]
[339055897,1727183452200,-500.0,0.00030136,14]
[339055898,1727183452209,-681.67,0.00030136,14]
[339055899,1727183452219,-500.0,0.00030136,14]
[339055900,1727183452230,-626.57,0.00030136,14]
[339055901,1727183452242,-500.0,0.00030136,14]
[339055902,1727183452253,-500.0,0.00030136,14]
[339055903,1727183452263,-500.0,0.00030136,14]
[339055904,1727183452275,-535.52,0.00030136,14]
[339055905,1727183452286,-500.0,0.00030136,14]
[339055906,1727183452297,-500.0,0.00030136,14]
[339055907,1727183452308,-500.0,0.00030136,14]
[339055908,1727183452320,-179.2432135,0.00030136,14]
[339055909,1727183452333,-500.0,0.00030136,14]
[339055910,1727183452343,-151.0,0.00030136,7]
[339055911,1727183452354,-193.018,0.00030136,7]
[339055912,1727183452366,-317.24225476,0.00030136,14]
[339055913,1727183452375,-500.0,0.00030136,14]
[339055914,1727183452386,-500.0,0.00030136,14]
[339055915,1727183452398,-500.0,0.00030136,14]
[339055916,1727183452410,-593.20778063,0.00030136,14]
[339055917,1727183452420,-765.133859,0.00030136,7]
[339055918,1727183452430,-765.13385,0.00030136,7]
[339055919,1727183452440,-500.0,0.00030136,14]
[339055920,1727183452451,-873.25,0.00030136,14]
[339055921,1727183452463,-500.0,0.00030136,14]
[339055922,1727183452472,-500.0,0.00030136,14]
[339055923,1727183452481,-1089.71,0.00030136,14]
[339055924,1727183452493,-792.01,0.00030136,14]
[339055925,1727183452505,-500.0,0.00030136,14]
[339055926,1727183452515,-511.42,0.00030136,14]
[339055927,1727183452526,-500.0,0.00030136,14]
[339055928,1727183452537,-502.34353359,0.00030136,14]
[339055929,1727183452546,-424.91,0.00030136,14]
[339055930,1727183452560,-500.0,0.00030136,14]
[339055931,1727183452570,-500.0,0.00030136,14]
[339055932,1727183452580,-500.0,0.00030136,14]
[339055933,1727183452589,-500.0,0.00030136,14]
[339055934,1727183452601,-501.93022482,0.00030136,14]
[339055935,1727183452611,-500.0,0.00030136,14]
[339055936,1727183452623,-605.08125337,0.00030136,14]
[339055937,1727183452633,-193.35870197,0.00030136,14]
[339055938,1727183452643,-500.0,0.00030136,14]
[339055939,1727183452653,-500.0,0.00030136,14]
[339055940,1727183452665,-337.95285531,0.00030136,14]
[339055941,1727183452675,-167.00556814,0.00030136,14]
[339055942,1727183452687,-500.0,0.00030136,14]
[339055943,1727183452698,-290.53428692,0.00030136,14]
[339055944,1727183452709,-292.92,0.00030136,14]
[339055945,1727183452719,-151.0,0.00030136,7]
[339055946,1727183452729,-151.0,0.00030136,7]
[339055947,1727183452740,-151.0,0.00030136,7]
[339055948,1727183452750,-151.0,0.00030136,7]
[339055949,1727183452761,-151.0,0.00030136,7]
[339055950,1727183452771,-151.0,0.00030136,7]
[339055951,1727183452781,-500.0,0.00030136,14]
[339055952,1727183452793,-500.0,0.00030136,14]
[339055953,1727183452805,-500.0,0.00030136,14]
[339055954,1727183452815,-500.0,0.00030136,14]
[339055955,1727183452827,-500.0,0.00030136,14]
[339055956,1727183452838,-500.0,0.00030136,14]
[339055957,1727183452849,-500.0,0.00030136,14]
[339055958,1727183452858,-500.0,0.00030136,14]
[339055959,1727183452867,-500.0,0.00030136,14]
[339055960,1727183452878,-500.0,0.00030136,14]
[339055961,1727183452889,-500.0,0.00030136,14]
[339055962,1727183452898,-500.0,0.00030136,14]
[339055963,1727183452908,-500.0,0.00030136,14]
[339055964,1727183452918,-500.0,0.00030136,14]
[339055965,1727183452929,-232.47,0.00030136,14]
[339055966,1727183452939,-500.0,0.00030136,14]
[339055967,1727183452950,-179.13507638,0.00030136,14]
[339055968,1727183452961,-500.0,0.00030136,14]
[339055969,1727183452974,-500.0,0.00030136,14]
[339055970,1727183452983,-500.0,0.00030136,14]
[339055971,1727183452995,-320.322419,0.00030136,7]
[339055972,1727183453005,-320.322419,0.00030136,7]
[339055973,1727183453014,-500.0,0.00030136,14]
[339055974,1727183453024,-320.322419,0.00030136,7]
[339055975,1727183453033,-320.322419,0.00030136,7]
[339055976,1727183453043,-320.322419,0.00030136,7]
[339055977,1727183453052,-320.322419,0.00030136,7]
[339055978,1727183453061,-500.0,0.00030136,14]
[339055979,1727183453071,-720.06,0.00030136,14]
[339055980,1727183453081,-500.0,0.00030136,14]
[339055981,1727183453089,-320.322419,0.00030136,7]
[339055982,1727183453098,-320.322419,0.00030136,7]
[339055983,1727183453107,-500.0,0.00030136,14]
[339055984,1727183453117,-320.322419,0.00030136,7]
[339055985,1727183453125,-320.322419,0.00030136,7]
[339055986,1727183453134,-320.322419,0.00030136,7]
[339055987,1727183453143,-320.322428,0.00030136,7]